[Event "94th FRA-ch Open A 2019"]
[Site "Chartres"]
[Date "2019.08.17"]
[Round "1.1"]
[White "Jaulin, Marc"]
[Black "Vedovotto, Nicolas"]
[Result "1/2-1/2"]
[ECO "B01"]
[WhiteElo "2038"]
[BlackElo "2199"]
[Annotator "NA"]
[PlyCount "67"]
[EventDate "2019.08.17"]
[EventType "swiss"]
[EventCountry "FRA"]
[SourceTitle "playchess.com"]
[Source "ChessBase"]
[SourceQuality "1"]
[TimeControl "40/5400+30:1800+30"]

1. e4 {[%emt 0:00:00]} Nc6 {[%emt 0:00:00]} 2. Nf3 {[%emt 0:00:00]} d5 {[%emt 0:00:00]} 3. exd5 {[%emt 0:00:28]} Qxd5 {[%emt 0:00:00]} 4. Nc3 {[%emt 0:00:15]} Qa5 {[%emt 0:00:00]} 5. Bc4 {[%emt 0:02:46]} Bg4 {[%emt 0:00:42]} 6. h3 {[%emt 0:03:25]} Bh5 {[%emt 0:00:59]} 7. Bb5 {[%emt 0:05:29]} O-O-O {[%emt 0:06:11]} 8. Bxc6 {[%emt 0:01:04]} bxc6 {[%emt 0:00:05]} 9. d3 {[%emt 0:01:55]} Nf6 {[%emt 0:19:28]} 10. Qe2 {[%emt 0:18:49]} e6 {[%emt 0:11:42]} 11. g4 {[%emt 0:03:36]} Bg6 {[%emt 0:01:18]} 12. Bd2 {[%emt 0:02:13]} Bd6 {[%emt 0:09:59]} 13. Ne4 {[%emt 0:09:14]} Qb6 {[%emt 0:08:56]} 14. Bc3 {[%emt 0:05:04]} Nxe4 {[%emt 0:11:51]} 15. dxe4 {[%emt 0:00:39]} f6 {[%emt 0:06:14]} 16. e5 {[%emt 0:09:33]} fxe5 {[%emt 0:05:12]} 17. Nxe5 {[%emt 0:01:27]} Bxe5 {[%emt 0:02:29]} 18. Bxe5 {[%emt 0:07:19]} Qb4+ {[%emt 0:04:37]} 19. Bc3 {[%emt 0:00:53]} Qe4 {[%emt 0:01:25]} 20. Qxe4 {[%emt 0:00:23]} Bxe4 {[%emt 0:00:02]} 21. O-O {[%emt 0:00:59]} h5 {[%emt 0:01:26]} 22. f3 {[%emt 0:01:45]} Bxc2 {[%emt 0:00:31]} 23. Bxg7 {[%emt 0:03:08]} Rhg8 {[%emt 0:00:38]} 24. Bc3 {[%emt 0:00:54]} Rd7 {[%emt 0:02:09]} 25. Rfe1 {[%emt 0:03:09]} hxg4 {[%emt 0:02:01]} 26. hxg4 {[%emt 0:00:22]} Rg6 {[%emt 0:00:48]} 27. Re5 {[%emt 0:03:11]} Rh7 {[%emt 0:00:53]} 28. Rae1 {[%emt 0:02:22]} Kd7 {[%emt 0:01:19]} 29. Kf2 {[%emt 0:04:49]} Rgh6 {[%emt 0:00:52]} 30. R5e2 {[%emt 0:02:22]} Bd3 {[%emt 0:00:44]} 31. Rd2 {[%emt 0:00:13]} Rh2+ {[%emt 0:00:05]} 32. Ke3 {[%emt 0:00:11]} Rxd2 {[%emt 0:00:09]} 33. Bxd2 {[%emt 0:01:41]} Bc4 {[%emt 0:00:14]} 34. a3 {[%emt 0:07:22]} 1/2-1/2

[Event "94th FRA-ch Open A 2019"]
[Site "Chartres"]
[Date "2019.08.17"]
[Round "1.2"]
[White "Meunier-Pion, Jean"]
[Black "Juran, Baptiste"]
[Result "1-0"]
[ECO "C05"]
[WhiteElo "2193"]
[BlackElo "2038"]
[Annotator "NA"]
[PlyCount "95"]
[EventDate "2019.08.17"]
[EventType "swiss"]
[EventCountry "FRA"]
[SourceTitle "playchess.com"]
[Source "ChessBase"]
[SourceQuality "1"]
[TimeControl "40/5400+30:1800+30"]

1. e4 {[%emt 0:00:00]} e6 {[%emt 0:00:00]} 2. d4 {[%emt 0:00:00]} d5 {[%emt 0:00:00]} 3. Nd2 {[%emt 0:00:00]} Nf6 {[%emt 0:00:00]} 4. e5 {[%emt 0:00:00]} Nfd7 {[%emt 0:00:00]} 5. f4 {[%emt 0:00:27]} c5 {[%emt 0:00:16]} 6. c3 {[%emt 0:00:15]} Nc6 {[%emt 0:00:07]} 7. Ndf3 {[%emt 0:00:38]} Qa5 {[%emt 0:02:55]} 8. dxc5 {[%emt 0:05:22]} Qxc5 {[%emt 0:03:20]} 9. Nd4 {[%emt 0:00:22]} Nxd4 {[%emt 0:05:13]} 10. cxd4 {[%emt 0:00:41]} Qa5+ {[%emt 0:00:16]} 11. Kf2 {[%emt 0:01:46]} Be7 {[%emt 0:04:05]} 12. Bd3 {[%emt 0:00:50]} O-O {[%emt 0:08:51]} 13. Nf3 {[%emt 0:00:06]} f6 {[%emt 0:02:01]} 14. h4 {[%emt 0:09:47]} Qb6 {[%emt 0:03:25]} 15. Kg3 {[%emt 0:18:45]} f5 {[%emt 0:10:39]} 16. Kf2 {[%emt 0:24:10]} Nb8 {[%emt 0:05:59]} 17. Rb1 {[%emt 0:03:25]} Nc6 {[%emt 0:03:41]} 18. a3 {[%emt 0:00:04]} a5 {[%emt 0:02:50]} 19. Be3 {[%emt 0:02:26]} Bd7 {[%emt 0:01:40]} 20. g4 {[%emt 0:22:14]} fxg4 {[%emt 0:09:29]} 21. Ng5 {[%emt 0:00:09]} h5 {[%emt 0:13:32]} 22. Bh7+ {[%emt 0:00:14]} Kh8 {[%emt 0:00:14]} 23. Bg6 {[%emt 0:00:04]} Nxe5 {[%emt 0:07:38]} 24. Bxh5 {[%emt 0:00:22]} Nc4 {[%emt 0:02:05]} 25. Qd3 {[%emt 0:04:10]} Rf5 {[%emt 0:01:58]} 26. Bxg4 {[%emt 0:00:08]} Nxe3 {[%emt 0:02:18]} 27. Kxe3 {[%emt 0:02:28]} Raf8 {[%emt 0:01:16]} 28. Bxf5 {[%emt 0:01:06]} Rxf5 {[%emt 0:00:09]} 29. Qd1 {[%emt 0:01:15]} Be8 {[%emt 0:01:20]} 30. Rc1 {[%emt 0:02:17]} Bd6 {[%emt 0:04:35]} 31. Rf1 {[%emt 0:00:55]} g6 {[%emt 0:01:43]} 32. Rc8 {[%emt 0:00:23]} Qb5 {[%emt 0:00:42]} 33. h5 {[%emt 0:00:49]} Kg7 {[%emt 0:02:46]} 34. Nxe6+ {[%emt 0:00:22]} Kf6 {[%emt 0:00:13]} 35. Nc7 {[%emt 0:00:36]} Bxc7 {[%emt 0:00:14]} 36. Rxc7 {[%emt 0:00:08]} gxh5 {[%emt 0:00:50]} 37. Qe1 {[%emt 0:00:29]} Qb3+ {[%emt 0:00:32]} 38. Qc3 {[%emt 0:00:37]} Qb6 {[%emt 0:00:53]} 39. Kd2 {[%emt 0:00:40]} Bc6 {[%emt 0:00:45]} 40. Rc8 {[%emt 0:00:06]} Kf7 {[%emt 0:00:10]} 41. Kc1 {[%emt 0:30:43]} Qb5 {[%emt 0:30:32]} 42. Rf2 {[%emt 0:00:44]} Rf6 {[%emt 0:00:38]} 43. Qh3 {[%emt 0:00:30]} Bd7 {[%emt 0:00:20]} 44. Qxh5+ {[%emt 0:00:05]} Ke7 {[%emt 0:01:19]} 45. Re2+ {[%emt 0:00:44]} Re6 {[%emt 0:00:26]} 46. Qg5+ {[%emt 0:00:10]} Kd6 {[%emt 0:00:07]} 47. Rxe6+ {[%emt 0:00:13]} Kxe6 {[%emt 0:00:18]} 48. f5+ {[%emt 0:00:20]} 1-0

[Event "94th FRA-ch Open A 2019"]
[Site "Chartres"]
[Date "2019.08.17"]
[Round "1.4"]
[White "Rivalin, Kenny"]
[Black "Derouineau, Jacques"]
[Result "1-0"]
[ECO "C41"]
[WhiteElo "2184"]
[BlackElo "2037"]
[Annotator "NA"]
[PlyCount "73"]
[EventDate "2019.08.17"]
[EventType "swiss"]
[EventCountry "FRA"]
[SourceTitle "playchess.com"]
[Source "ChessBase"]
[SourceQuality "1"]
[TimeControl "40/5400+30:1800+30"]

1. e4 {[%emt 0:00:00]} e5 {[%emt 0:00:00]} 2. Nf3 {[%emt 0:00:00]} d6 {[%emt 0:00:00]} 3. d4 {[%emt 0:00:00]} Nd7 {[%emt 0:00:02]} 4. Bc4 {[%emt 0:00:13]} c6 {[%emt 0:00:19]} 5. O-O {[%emt 0:00:12]} Be7 {[%emt 0:00:07]} 6. Nc3 {[%emt 0:00:44]} Ngf6 {[%emt 0:00:11]} 7. a4 {[%emt 0:00:14]} O-O {[%emt 0:00:09]} 8. Re1 {[%emt 0:00:45]} b6 {[%emt 0:02:46]} 9. Bg5 {[%emt 0:17:39]} Bb7 {[%emt 0:09:37]} 10. Qe2 {[%emt 0:21:13]} h6 {[%emt 0:04:22]} 11. Bh4 {[%emt 0:02:37]} Nh5 {[%emt 0:01:26]} 12. Bg3 {[%emt 0:02:16]} Bf6 {[%emt 0:11:24]} 13. Rad1 {[%emt 0:01:02]} Qe7 {[%emt 0:00:16]} 14. dxe5 {[%emt 0:11:17]} dxe5 {[%emt 0:06:23]} 15. Nd2 {[%emt 0:07:38]} Nxg3 {[%emt 0:01:57]} 16. hxg3 {[%emt 0:00:05]} Nc5 {[%emt 0:00:58]} 17. Nf1 {[%emt 0:04:20]} Rad8 {[%emt 0:00:25]} 18. Ne3 {[%emt 0:00:31]} g6 {[%emt 0:02:55]} 19. Rxd8 {[%emt 0:28:44]} Rxd8 {[%emt 0:01:09]} 20. Rd1 {[%emt 0:00:00]} Bc8 {[%emt 0:00:40]} 21. b4 {[%emt 0:01:00]} Ne6 {[%emt 0:05:04]} 22. Rxd8+ {[%emt 0:00:00]} Qxd8 {[%emt 0:00:40]} 23. b5 {[%emt 0:00:00]} Nd4 {[%emt 0:12:07]} 24. Qd3 {[%emt 0:00:00]} c5 {[%emt 0:02:22]} 25. Ncd5 {[%emt 0:00:00]} Bg7 {[%emt 0:01:20]} 26. c3 {[%emt 0:00:00]} Ne6 {[%emt 0:00:14]} 27. Bb3 {[%emt 0:00:00]} h5 {[%emt 0:06:01]} 28. Nc4 {[%emt 0:00:00]} Bb7 {[%emt 0:03:30]} 29. Qf3 {[%emt 0:00:00]} Ng5 {[%emt 0:05:11]} 30. Qd3 {[%emt 0:00:00]} Nxe4 {[%emt 0:07:22]} 31. Na5 {[%emt 0:00:00]} Nd6 {[%emt 0:06:43]} 32. Nc6 {[%emt 0:05:30]} Bxc6 {[%emt 0:02:29]} 33. bxc6 {[%emt 0:00:00]} Qg5 {[%emt 0:00:41]} 34. c7 {[%emt 0:00:00]} h4 {[%emt 0:02:31]} 35. gxh4 {[%emt 0:00:00]} Qxh4 {[%emt 0:01:12]} 36. Nxb6 {[%emt 0:00:00]} Ne4 {[%emt 0:02:05]} 37. Qd8+ {[%emt 0:00:00]} 1-0

[Event "94th FRA-ch Open A 2019"]
[Site "Chartres"]
[Date "2019.08.17"]
[Round "1.5"]
[White "Corgeron, Jean-Luc"]
[Black "Burille, Matthieu"]
[Result "0-1"]
[ECO "A37"]
[WhiteElo "2036"]
[BlackElo "2174"]
[Annotator "NA"]
[PlyCount "44"]
[EventDate "2019.08.17"]
[EventType "swiss"]
[EventCountry "FRA"]
[SourceTitle "playchess.com"]
[Source "ChessBase"]
[SourceQuality "1"]
[TimeControl "40/5400+30:1800+30"]

1. Nf3 {[%emt 0:00:00]} c5 {[%emt 0:00:00]} 2. c4 {[%emt 0:00:15]} Nc6 {[%emt 0:00:00]} 3. g3 {[%emt 0:01:07]} g6 {[%emt 0:00:00]} 4. Nc3 {[%emt 0:00:40]} Bg7 {[%emt 0:00:13]} 5. Bg2 {[%emt 0:00:20]} e5 {[%emt 0:01:45]} 6. d3 {[%emt 0:00:52]} Nge7 {[%emt 0:00:49]} 7. Ne4 {[%emt 0:07:52]} d6 {[%emt 0:19:53]} 8. Bg5 {[%emt 0:02:16]} f5 {[%emt 0:20:35]} 9. Nf6+ {[%emt 0:02:03]} Kf7 {[%emt 0:00:08]} 10. Nd5 {[%emt 0:00:54]} h6 {[%emt 0:00:09]} 11. Nxe7 {[%emt 0:10:41]} Nxe7 {[%emt 0:02:30]} 12. Bxe7 {[%emt 0:17:19]} Qxe7 {[%emt 0:00:03]} 13. e4 {[%emt 0:01:12]} f4 {[%emt 0:01:18]} 14. Qd2 {[%emt 0:02:06]} g5 {[%emt 0:01:01]} 15. O-O-O {[%emt 0:05:19]} g4 {[%emt 0:01:55]} 16. gxf4 {[%emt 0:01:05]} gxf3 {[%emt 0:00:33]} 17. Bxf3 {[%emt 0:00:14]} Qh4 {[%emt 0:09:37]} 18. fxe5 {[%emt 0:02:39]} Bxe5 {[%emt 0:00:34]} 19. Qe2 {[%emt 0:00:31]} Be6 {[%emt 0:02:13]} 20. Kb1 {[%emt 0:02:58]} Ke7 {[%emt 0:00:32]} 21. b4 {[%emt 0:02:31]} b6 {[%emt 0:00:52]} 22. h3 {[%emt 0:05:16]} Raf8 {[%emt 0:05:27]} 0-1

[Event "94th FRA-ch Open A 2019"]
[Site "Chartres"]
[Date "2019.08.18"]
[Round "2.1"]
[White "Llapasset, Jean-Louis"]
[Black "Meunier-Pion, Jean"]
[Result "0-1"]
[ECO "B80"]
[WhiteElo "2050"]
[BlackElo "2193"]
[Annotator "NA"]
[PlyCount "82"]
[EventDate "2019.08.17"]
[EventType "swiss"]
[EventCountry "FRA"]
[SourceTitle "playchess.com"]
[Source "ChessBase"]
[SourceQuality "1"]
[TimeControl "40/5400+30:1800+30"]

1. e4 {[%emt 0:00:00]} c5 {[%emt 0:00:00]} 2. Nf3 {[%emt 0:00:00]} d6 {[%emt 0:00:00]} 3. d4 {[%emt 0:00:12]} cxd4 {[%emt 0:00:00]} 4. Nxd4 {[%emt 0:00:06]} Nf6 {[%emt 0:00:00]} 5. Nc3 {[%emt 0:00:04]} a6 {[%emt 0:00:00]} 6. f3 {[%emt 0:02:24]} e6 {[%emt 0:00:00]} 7. Be3 {[%emt 0:01:36]} b5 {[%emt 0:00:02]} 8. Qd2 {[%emt 0:04:56]} Bb7 {[%emt 0:00:06]} 9. g4 {[%emt 0:01:47]} Be7 {[%emt 0:00:18]} 10. g5 {[%emt 0:02:43]} Nfd7 {[%emt 0:01:19]} 11. a4 {[%emt 0:04:42]} b4 {[%emt 0:00:42]} 12. Nce2 {[%emt 0:02:38]} d5 {[%emt 0:00:24]} 13. exd5 {[%emt 0:00:54]} Bxd5 {[%emt 0:01:06]} 14. Bg2 {[%emt 0:27:24]} Nb6 {[%emt 0:05:36]} 15. b3 {[%emt 0:00:15]} Bb7 {[%emt 0:00:26]} 16. h4 {[%emt 0:07:11]} g6 {[%emt 0:18:45]} 17. h5 {[%emt 0:04:52]} Rg8 {[%emt 0:00:17]} 18. hxg6 {[%emt 0:01:40]} hxg6 {[%emt 0:00:07]} 19. O-O-O {[%emt 0:09:46]} e5 {[%emt 0:05:14]} 20. Ne6 {[%emt 0:06:41]} Qxd2+ {[%emt 0:00:11]} 21. Rxd2 {[%emt 0:00:03]} fxe6 {[%emt 0:00:07]} 22. Bxb6 {[%emt 0:04:10]} Bxg5 {[%emt 0:00:36]} 23. Rh7 {[%emt 0:00:14]} Bxd2+ {[%emt 0:00:14]} 24. Kxd2 {[%emt 0:00:03]} Nd7 {[%emt 0:00:08]} 25. Ba5 {[%emt 0:00:50]} g5 {[%emt 0:20:15]} 26. Bh3 {[%emt 0:03:45]} Bd5 {[%emt 0:00:13]} 27. Bxb4 {[%emt 0:00:49]} Nf8 {[%emt 0:03:56]} 28. Re7+ {[%emt 0:02:00]} Kd8 {[%emt 0:00:01]} 29. Ke3 {[%emt 0:00:28]} Rb8 {[%emt 0:13:43]} 30. Ba3 {[%emt 0:02:17]} Bxb3 {[%emt 0:02:07]} 31. Rf7 {[%emt 0:00:27]} Nd7 {[%emt 0:01:24]} 32. Nc3 {[%emt 0:02:54]} Rg6 {[%emt 0:15:45]} 33. Ne4 {[%emt 0:01:12]} Bxc2 {[%emt 0:02:10]} 34. Be7+ {[%emt 0:01:27]} Kc8 {[%emt 0:00:07]} 35. Nxg5 {[%emt 0:01:58]} Bb3 {[%emt 0:03:23]} 36. Bf1 {[%emt 0:00:14]} Rb6 {[%emt 0:00:40]} 37. Ne4 {[%emt 0:00:44]} Bxa4 {[%emt 0:01:10]} 38. Bc4 {[%emt 0:01:46]} Bb3 {[%emt 0:01:30]} 39. Nd6+ {[%emt 0:00:23]} Rxd6 {[%emt 0:01:30]} 40. Bxb3 {[%emt 0:00:20]} Rd4 {[%emt 0:00:49]} 41. Rh7 {[%emt 0:04:39]} Nb6 {[%emt 0:04:35]} 0-1

[Event "94th FRA-ch Open A 2019"]
[Site "Chartres"]
[Date "2019.08.18"]
[Round "2.2"]
[White "Aumont, Alexandre"]
[Black "Dube, Dimitri"]
[Result "1-0"]
[ECO "B11"]
[WhiteElo "2190"]
[BlackElo "2056"]
[Annotator "NA"]
[PlyCount "47"]
[EventDate "2019.08.17"]
[EventType "swiss"]
[EventCountry "FRA"]
[SourceTitle "playchess.com"]
[Source "ChessBase"]
[SourceQuality "1"]
[TimeControl "40/5400+30:1800+30"]

1. e4 {[%emt 0:00:00]} c6 {[%emt 0:00:50]} 2. Nc3 {[%emt 0:00:00]} d5 {[%emt 0:00:07]} 3. Nf3 {[%emt 0:00:00]} Bg4 {[%emt 0:01:35]} 4. h3 {[%emt 0:00:00]} Bxf3 {[%emt 0:00:57]} 5. Qxf3 {[%emt 0:00:00]} Nf6 {[%emt 0:00:36]} 6. d3 {[%emt 0:00:33]} e6 {[%emt 0:00:57]} 7. Bd2 {[%emt 0:00:35]} Be7 {[%emt 0:01:34]} 8. g4 {[%emt 0:00:30]} Na6 {[%emt 0:04:05]} 9. O-O-O {[%emt 0:05:10]} Nc7 {[%emt 0:04:35]} 10. g5 {[%emt 0:01:08]} Nd7 {[%emt 0:00:21]} 11. h4 {[%emt 0:00:43]} b5 {[%emt 0:01:44]} 12. Kb1 {[%emt 0:05:51]} b4 {[%emt 0:06:21]} 13. Ne2 {[%emt 0:02:25]} Nb5 {[%emt 0:01:09]} 14. Bh3 {[%emt 0:08:22]} Rb8 $11 {[%emt 0:07:57]} 15. exd5 {[%emt 0:20:58]} cxd5 {[%emt 0:00:28]} 16. Qf4 {[%emt 0:32:53]} Qa5 {[%emt 0:15:07]} 17. Nc1 {[%emt 0:00:52]} O-O {[%emt 0:05:32]} 18. Nb3 {[%emt 0:01:42]} Qa4 {[%emt 0:05:00]} 19. h5 {[%emt 0:03:08]} d4 {[%emt 0:07:38]} 20. g6 {[%emt 0:01:10]} Nc5 {[%emt 0:06:44]} 21. gxf7+ {[%emt 0:00:50]} Kh8 {[%emt 0:00:08]} 22. h6 {[%emt 0:00:44]} Bf6 {[%emt 0:18:44]} 23. hxg7+ {[%emt 0:01:45]} Bxg7 {[%emt 0:00:22]} 24. Bxe6 {[%emt 0:03:38]} 1-0

[Event "94th FRA-ch Open A 2019"]
[Site "Chartres"]
[Date "2019.08.18"]
[Round "2.3"]
[White "Gourbiere, Yohan"]
[Black "Rivalin, Kenny"]
[Result "0-1"]
[ECO "B53"]
[WhiteElo "2040"]
[BlackElo "2184"]
[Annotator "NA"]
[PlyCount "46"]
[EventDate "2019.08.17"]
[EventType "swiss"]
[EventCountry "FRA"]
[SourceTitle "playchess.com"]
[Source "ChessBase"]
[SourceQuality "1"]
[TimeControl "40/5400+30:1800+30"]

1. e4 {[%emt 0:00:00]} c5 {[%emt 0:00:00]} 2. Nf3 {[%emt 0:00:00]} d6 {[%emt 0:00:00]} 3. d4 {[%emt 0:00:00]} cxd4 {[%emt 0:00:00]} 4. Qxd4 {[%emt 0:00:00]} Bd7 {[%emt 0:00:16]} 5. Be3 {[%emt 0:06:29]} Nc6 {[%emt 0:00:50]} 6. Qd2 {[%emt 0:03:35]} Nf6 {[%emt 0:00:37]} 7. Nc3 {[%emt 0:00:43]} a6 {[%emt 0:07:59]} 8. O-O-O {[%emt 0:04:33]} b5 {[%emt 0:01:10]} 9. Bd3 $11 {[%emt 0:35:22]} e6 {[%emt 0:08:25]} 10. h3 {[%emt 0:20:00]} b4 {[%emt 0:18:49]} 11. Ne2 {[%emt 0:00:38]} Qa5 {[%emt 0:07:01]} 12. Kb1 {[%emt 0:01:37]} e5 {[%emt 0:02:22]} 13. Nc1 {[%emt 0:01:14]} Be7 {[%emt 0:02:40]} 14. Bg5 {[%emt 0:02:40]} Be6 {[%emt 0:01:28]} 15. Bxf6 {[%emt 0:01:44]} Bxf6 {[%emt 0:09:45]} 16. Nb3 {[%emt 0:01:15]} Qb6 {[%emt 0:02:19]} 17. Ng5 {[%emt 0:01:09]} Bxg5 {[%emt 0:03:13]} 18. Qxg5 {[%emt 0:01:53]} O-O {[%emt 0:00:06]} 19. Qh4 {[%emt 0:03:29]} a5 {[%emt 0:01:15]} 20. f4 {[%emt 0:01:31]} a4 {[%emt 0:05:30]} 21. Nd2 {[%emt 0:01:08]} a3 {[%emt 0:06:32]} 22. f5 {[%emt 0:02:33]} Bxa2+ {[%emt 0:01:33]} 23. Kxa2 {[%emt 0:01:24]} axb2+ {[%emt 0:00:23]} 0-1

[Event "94th FRA-ch Open A 2019"]
[Site "Chartres"]
[Date "2019.08.18"]
[Round "2.4"]
[White "Burille, Matthieu"]
[Black "Ribiere, Damien"]
[Result "1-0"]
[ECO "B07"]
[WhiteElo "2174"]
[BlackElo "2042"]
[Annotator "NA"]
[PlyCount "85"]
[EventDate "2019.08.17"]
[EventType "swiss"]
[EventCountry "FRA"]
[SourceTitle "playchess.com"]
[Source "ChessBase"]
[SourceQuality "1"]
[TimeControl "40/5400+30:1800+30"]

1. e4 {[%emt 0:00:00]} d6 {[%emt 0:00:24]} 2. d4 {[%emt 0:00:55]} Nf6 {[%emt 0:00:05]} 3. Nc3 {[%emt 0:00:03]} g6 {[%emt 0:00:07]} 4. Be3 {[%emt 0:00:04]} c6 {[%emt 0:00:03]} 5. Qd2 {[%emt 0:00:10]} Nbd7 {[%emt 0:00:04]} 6. Nf3 {[%emt 0:01:41]} b5 {[%emt 0:00:45]} 7. Bd3 {[%emt 0:00:06]} Bg7 {[%emt 0:00:24]} 8. O-O {[%emt 0:00:12]} O-O {[%emt 0:00:08]} 9. h3 {[%emt 0:00:53]} e5 {[%emt 0:00:48]} 10. dxe5 {[%emt 0:01:39]} dxe5 {[%emt 0:00:20]} 11. a4 {[%emt 0:05:57]} b4 {[%emt 0:00:46]} 12. Ne2 {[%emt 0:01:35]} a5 {[%emt 0:00:16]} 13. Ng3 {[%emt 0:02:54]} Re8 {[%emt 0:08:29]} 14. c3 {[%emt 0:02:44]} Nf8 {[%emt 0:10:38]} 15. cxb4 {[%emt 0:03:56]} axb4 {[%emt 0:00:08]} 16. Qc2 $16 {[%emt 0:10:39]} Ba6 {[%emt 0:07:05]} 17. Bxa6 {[%emt 0:04:52]} Rxa6 {[%emt 0:00:07]} 18. Qc4 {[%emt 0:09:07]} Qa5 {[%emt 0:05:39]} 19. Bc5 {[%emt 0:05:35]} b3 {[%emt 0:10:13]} 20. Ng5 {[%emt 0:01:45]} Ne6 {[%emt 0:00:41]} 21. Nxe6 {[%emt 0:00:03]} Rxe6 {[%emt 0:00:16]} 22. Be3 {[%emt 0:00:40]} h5 {[%emt 0:02:22]} 23. Qxb3 {[%emt 0:05:40]} h4 {[%emt 0:00:15]} 24. Ne2 {[%emt 0:00:10]} Nxe4 {[%emt 0:00:21]} 25. Qd3 {[%emt 0:00:26]} Nd6 {[%emt 0:03:43]} 26. b4 {[%emt 0:06:00]} e4 {[%emt 0:02:06]} 27. Qxd6 {[%emt 0:01:05]} Rxd6 {[%emt 0:00:05]} 28. bxa5 {[%emt 0:00:05]} Bxa1 {[%emt 0:00:08]} 29. Rxa1 {[%emt 0:00:04]} Rxa5 {[%emt 0:00:18]} 30. Bb6 {[%emt 0:02:16]} Ra6 {[%emt 0:01:23]} 31. a5 {[%emt 0:00:09]} Rd2 {[%emt 0:06:01]} 32. Nd4 {[%emt 0:01:40]} Rb2 {[%emt 0:00:32]} 33. Rc1 {[%emt 0:01:48]} Ra8 {[%emt 0:05:35]} 34. Rxc6 {[%emt 0:01:35]} Re8 {[%emt 0:01:49]} 35. a6 {[%emt 0:00:16]} e3 {[%emt 0:01:46]} 36. fxe3 {[%emt 0:00:14]} Rxe3 {[%emt 0:00:58]} 37. Nf3 {[%emt 0:17:26]} Ra3 {[%emt 0:12:13]} 38. Rc8+ {[%emt 0:03:19]} Kh7 {[%emt 0:00:05]} 39. Bd4 {[%emt 0:00:04]} Rb1+ {[%emt 0:00:04]} 40. Kh2 {[%emt 0:00:09]} g5 {[%emt 0:00:30]} 41. a7 {[%emt 0:30:11]} g4 {[%emt 0:33:41]} 42. hxg4 {[%emt 0:00:56]} h3 {[%emt 0:00:36]} 43. a8=Q {[%emt 0:00:43]} 1-0

[Event "94th FRA-ch Open A 2019"]
[Site "Chartres"]
[Date "2019.08.18"]
[Round "2.5"]
[White "Da Silva, Quentin"]
[Black "Galloux, Maxime"]
[Result "1-0"]
[ECO "B11"]
[WhiteElo "2161"]
[BlackElo "2039"]
[Annotator "NA"]
[PlyCount "123"]
[EventDate "2019.08.17"]
[EventType "swiss"]
[EventCountry "FRA"]
[SourceTitle "playchess.com"]
[Source "ChessBase"]
[SourceQuality "1"]
[TimeControl "40/5400+30:1800+30"]

1. e4 {[%emt 0:00:00]} c6 {[%emt 0:04:38]} 2. Nc3 {[%emt 0:01:05]} d5 {[%emt 0:00:20]} 3. Qf3 {[%emt 0:00:37]} dxe4 {[%emt 0:10:17]} 4. Nxe4 {[%emt 0:00:56]} Nf6 {[%emt 0:02:12]} 5. Nxf6+ {[%emt 0:02:44]} exf6 {[%emt 0:00:20]} 6. Bc4 {[%emt 0:06:41]} Be7 {[%emt 0:05:23]} 7. Ne2 {[%emt 0:02:11]} O-O {[%emt 0:04:45]} 8. d4 {[%emt 0:04:16]} Nd7 {[%emt 0:02:50]} 9. O-O {[%emt 0:02:05]} Nb6 {[%emt 0:08:02]} 10. Bd3 {[%emt 0:03:14]} Be6 {[%emt 0:01:46]} 11. c3 {[%emt 0:06:58]} a5 {[%emt 0:07:31]} 12. Re1 {[%emt 0:05:48]} Re8 {[%emt 0:01:32]} 13. Ng3 {[%emt 0:10:52]} g6 {[%emt 0:13:08]} 14. Bh6 {[%emt 0:10:29]} a4 {[%emt 0:14:58]} 15. Nh5 {[%emt 0:12:36]} Kh8 {[%emt 0:11:02]} 16. Bg7+ {[%emt 0:07:51]} Kg8 {[%emt 0:00:06]} 17. Bxf6 {[%emt 0:02:20]} Nd5 {[%emt 0:03:54]} 18. Bxe7 {[%emt 0:01:04]} Rxe7 {[%emt 0:00:08]} 19. Nf6+ {[%emt 0:03:44]} Kg7 {[%emt 0:01:37]} 20. Nxd5 {[%emt 0:05:11]} Bxd5 {[%emt 0:00:23]} 21. Qd1 {[%emt 0:02:06]} Qd6 {[%emt 0:04:55]} 22. Rxe7 {[%emt 0:01:02]} Qxe7 {[%emt 0:00:04]} 23. Qe2 {[%emt 0:02:11]} Qg5 {[%emt 0:00:54]} 24. g3 {[%emt 0:02:58]} b5 {[%emt 0:00:26]} 25. a3 {[%emt 0:00:23]} Qf6 {[%emt 0:00:43]} 26. Qe5 {[%emt 0:00:45]} Qxe5 {[%emt 0:00:35]} 27. dxe5 {[%emt 0:00:04]} Re8 {[%emt 0:00:26]} 28. f4 {[%emt 0:00:39]} f6 {[%emt 0:00:30]} 29. Re1 {[%emt 0:00:40]} fxe5 {[%emt 0:00:25]} 30. fxe5 {[%emt 0:00:34]} Rf8 {[%emt 0:00:34]} 31. Be4 {[%emt 0:02:14]} Bxe4 {[%emt 0:00:25]} 32. Rxe4 {[%emt 0:00:05]} Rf5 {[%emt 0:00:25]} 33. g4 {[%emt 0:00:52]} Rf3 {[%emt 0:00:24]} 34. Kg2 {[%emt 0:00:40]} Rd3 {[%emt 0:00:07]} 35. Kf2 {[%emt 0:00:52]} Kf7 {[%emt 0:00:53]} 36. Rd4 {[%emt 0:00:29]} Rh3 {[%emt 0:00:26]} 37. Kg2 {[%emt 0:00:30]} Re3 {[%emt 0:00:16]} 38. Rd7+ {[%emt 0:00:22]} Ke6 {[%emt 0:00:43]} 39. Rxh7 {[%emt 0:00:41]} Re2+ {[%emt 0:00:33]} 40. Kg3 {[%emt 0:00:32]} Rxb2 {[%emt 0:00:47]} 41. Kf4 {[%emt 0:30:36]} Rf2+ {[%emt 0:09:22]} 42. Kg5 {[%emt 0:00:00]} Kxe5 {[%emt 0:05:55]} 43. Kxg6 {[%emt 0:00:00]} Rf3 {[%emt 0:03:26]} 44. h4 {[%emt 0:00:00]} Rxc3 {[%emt 0:01:08]} 45. h5 {[%emt 0:00:00]} Rxa3 {[%emt 0:01:23]} 46. h6 {[%emt 0:00:00]} Rg3 {[%emt 0:09:24]} 47. g5 {[%emt 0:00:00]} b4 {[%emt 0:01:11]} 48. Ra7 {[%emt 0:00:00]} a3 {[%emt 0:00:33]} 49. h7 {[%emt 0:00:00]} Rh3 {[%emt 0:00:07]} 50. Kg7 {[%emt 0:00:00]} c5 {[%emt 0:01:03]} 51. g6 {[%emt 0:00:00]} c4 {[%emt 0:00:56]} 52. h8=Q {[%emt 0:00:00]} Rxh8 {[%emt 0:00:11]} 53. Kxh8 {[%emt 0:00:00]} c3 {[%emt 0:01:31]} 54. g7 {[%emt 0:00:00]} c2 {[%emt 0:00:29]} 55. g8=Q {[%emt 0:00:00]} c1=Q {[%emt 0:00:09]} 56. Qe8+ {[%emt 0:00:00]} Kd4 {[%emt 0:01:05]} 57. Rd7+ {[%emt 0:00:00]} Kc3 {[%emt 0:00:09]} 58. Rc7+ {[%emt 0:00:46]} Kb2 {[%emt 0:00:21]} 59. Qe2+ {[%emt 0:02:55]} Kb1 {[%emt 0:00:08]} 60. Rxc1+ {[%emt 0:00:20]} Kxc1 {[%emt 0:00:15]} 61. Qc4+ {[%emt 0:00:10]} Kb2 {[%emt 0:01:10]} 62. Qxb4+ {[%emt 0:00:05]} 1-0